Cogmind - Beta 11.1 @@@ ROGUE MODE // 2022.09.03 @ 19:20:50 Player: darlorth Result: Destroyed by G-34 Mercenary with Small Laser Performance ------------- Evolutions (0) 0 Regions Visited (1) 200 Robots Destroyed (13) 65 Value Destroyed (187) 187 Prototype IDs (0) 0 Alien Tech Used (0) 0 Bonus (0) 0 TOTAL SCORE: 452 Bonus ------- None Cogmind --------- Core Integrity 0/250 Matter 275/300 Energy 100/100 System Corruption 0% Temperature Cool (6) Movement Core (1350) Ox26 Location -10/Materials Parts ------- > --- POWER (1) -------- (None) > --- PROPULSION (2) --- (None) > --- UTILITY (2) ------ Huge Storage Unit > --- WEAPON (2) ------- (None) > --- INVENTORY (25) --- Small Storage Unit Large Battery (200) Signal Interpreter Improved Terrain Scanner Peak State ------------ > --- POWER ------------ Ion Engine > --- PROPULSION ------- Light Treads Light Treads > --- UTILITY ---------- Small Storage Unit > --- WEAPON ----------- EM Pulse Gun Small Laser > --- INVENTORY -------- Ion Engine [Rating: 6] Favorites ----------- Power Ion Engine Engine Ion Engine Propulsion Light Treads Treads Light Treads Utility Huge Storage Unit Device Structural Scanner Storage Huge Storage Unit Weapon EM Pulse Gun Energy Gun EM Pulse Gun Launcher Grenade Launcher Special Weapon Mining Laser Build | -11 -10 ------- Run | Scr Mat Slots Evolved . | . . Power . | . . Propulsion . | . . Utility . | . . Weapon . | . . Parts Attached 15 | 6 9 Power 4 | 1 3 Engine 4 | 1 3 Core . | . . Reactor . | . . Propulsion 2 | 2 . Treads 2 | 2 . Leg . | . . Wheel . | . . Hover . | . . Flight . | . . Utility 3 | 1 2 Device 1 | . 1 Storage 2 | 1 1 Processor . | . . Hackware . | . . Protection . | . . Artifact . | . . Weapon 6 | 2 4 Energy Gun 3 | 2 1 Energy Cannon . | . . Ballistic Gun . | . . Ballistic Cannon . | . . Launcher 1 | . 1 Special Weapon 2 | . 2 Impact Weapon . | . . Slashing Weapon . | . . Piercing Weapon . | . . Special Melee Weapon . | . . Unidentified Prototypes . | . . Parts Lost 10 | . 10 Power 3 | . 3 Propulsion 1 | . 1 Utility 1 | . 1 Weapon 5 | . 5 Highest Loss Streak 7 | . 7 To Critical Strikes . | . . Average Slot Usage (%) 78 | . 78 Engine 13 | . 13 Treads 17 | . 17 Device 8 | . 8 Storage 14 | . 14 Energy Gun 17 | . 17 Launcher 5 | . 5 Naked Turns . | . . Heaviest Build 90 | 13 90 Greatest Support 40 | 40 40 Greatest Overweight (x) 28 | 2 28 Average Overweight (x) 2 | . 2 Largest Inventory Capacity 25 | 8 25 Average Capacity 22 | 7 23 Most Carried 7 | 2 7 Average Carried 4 | . 4 Final Capacity 25 | 8 25 Final Carried 4 | 1 4 Class Distribution -------------------- 100% | Mutant Dominant Class ---------------- Mutant | -10/Materials Resources | -11 -10 ----------- Run | Scr Mat Matter Collected 352 | 211 141 Remotely . | . . Salvage Created 125 | . 125 Parts 23 | . 23 Haulers Intercepted . | . . Recyclers Shooed . | . . Parts Field Recycled . | . . Retrieved Matter . | . . Parts Self-Destructed . | . . Prevented . | . . Kills | -11 -10 ------- Run | Scr Mat Combat Hostiles Destroyed 9 | . 9 Guns 2 | . 2 Cannons 1 | . 1 AOE 6 | . 6 Classes Destroyed 6 | . 6 Worker 1 | . 1 Builder 1 | . 1 Tunneler 1 | . 1 Watcher 1 | . 1 Swarmer 7 | . 7 Grunt 2 | . 2 Best Kill Streak 4 | . 4 Combat Bots Only 3 | . 3 Max Kills in Single Turn 3 | . 3 Gunslinging . | . . Exploded 2 | . 2 Melee . | . . Uniques/NPCs Destroyed . | . . Combat | -11 -10 -------- Run | Scr Mat Damage Taken 907 | . 907 Core 252 | . 252 Absorbed by Shields . | . . Core Remaining (%) 100 | 100 . Volleys Fired 31 | . 31 Largest 2 | . 2 Hottest 200 | . 200 Shots Fired 36 | . 36 Gun 25 | . 25 Cannon . | . . Launcher 9 | . 9 Special 2 | . 2 Kinetic . | . . Thermal 16 | . 16 Explosive 9 | . 9 Electromagnetic 11 | . 11 Robot Hit Streak 7 | . 7 Robot Miss Streak 4 | . 4 Penetration Max . | . . Secondary Targets . | . . Shots Hit Robots 21 | . 21 Core Hits 17 | . 17 Critical Kills . | . . Critical Parts Destroyed . | . . Critical Strikes . | . . Melee Attacks . | . . Impact . | . . Slashing . | . . Piercing . | . . Sneak Attacks . | . . Combat Hostiles . | . . Follow-up Attacks . | . . Damage Inflicted 673 | . 673 Guns 173 | . 173 Cannons . | . . Explosions 468 | . 468 Melee . | . . Ramming 8 | . 8 Kinetic . | . . Thermal 132 | . 132 Explosive 468 | . 468 Electromagnetic 65 | . 65 Impact . | . . Slashing . | . . Piercing . | . . Highest Corruption . | . . Average Corruption . | . . Corruption Purged . | . . Corruption Blocked . | . . Overload Shots . | . . Overflow Damage 8 | . 8 Projectiles . | . . Explosions 8 | . 8 Melee . | . . Knockbacks . | . . Impact . | . . Kinetic . | . . Secondary . | . . Self-Inflicted Damage 54 | . 54 Shots 2 | . 2 Rammed 4 | . 4 Targets Rammed 4 | . 4 Kicked . | . . Crushed . | . . Highest Temperature 80 | . 80 Average Temperature 21 | . 21 Received Heat Transfer 390 | . 390 Siege Activations . | . . Robots Corrupted . | . . Combat Hostiles . | . . Parts Fried . | . . Impact Corruptions . | . . Robots Melted . | . . Combat Hostiles . | . . Parts Melted 1 | . 1 Heat Transferred 300 | . 300 Parts Sabotaged . | . . Parts Stolen . | . . Parts Stripped . | . . Power Chain Reactions . | . . Missiles Intercepted . | . . Alert | -11 -10 ------- Run | Scr Mat Peak Influence 215 | . 215 Initial . | . . Average 72 | . 76 Maximum Alert Level 1 | . 1 Low Security (%) 99 | 100 99 Level 1 . | . . Level 2 . | . . Level 3 . | . . Level 4 . | . . Level 5 . | . . High Security . | . . Max Security . | . . Squads Dispatched 1 | . 1 Investigation . | . . Extermination . | . . Reinforcement 1 | . 1 Assault . | . . Garrison . | . . Intercept . | . . Searches Triggered . | . . Construction Impeded . | . . Haulers Reinforced . | . . Active Scanning Responses . | . . Cargo Convoy Interrupts . | . . Stealth | -11 -10 --------- Run | Scr Mat Distress Signals . | . . Communications Jammed . | . . Distress Signals . | . . Times Spotted 23 | . 23 Peak Tracking Total 4 | . 4 Tactical Retreats 1 | . 1 Traps | -11 -10 ------- Run | Scr Mat Traps Triggered 1 | . 1 Indirectly . | . . Trap Hack Attempts . | . . Triggered . | . . Disarmed . | . . Reprogrammed . | . . Reused . | . . Traps Extracted . | . . Installed . | . . Triggered . | . . Machines | -11 -10 ---------- Run | Scr Mat Machines Disabled 2 | . 2 Max in Single Turn 1 | . 1 Machines Sabotaged . | . . Garrisons Compromised . | . . Overloaded Fab Kills . | . . Hacking | -11 -10 --------- Run | Scr Mat Machines Accessed 1 | . 1 Terminals 1 | . 1 Fabricators . | . . Repair Stations . | . . Recycling Units . | . . Scanalyzers . | . . Garrison Access . | . . Total Hacks 2 | . 2 Successful . | . . Failed 2 | . 2 Catastrophic . | . . Database Lockouts . | . . Manual 2 | . 2 Terminals 2 | . 2 Fabricators . | . . Repair Stations . | . . Recycling Units . | . . Scanalyzers . | . . Garrison Access . | . . Terminal Hacks . | . . Fabricator Hacks . | . . Repair Station Hacks . | . . Recycling Unit Hacks . | . . Scanalyzer . | . . Garrison Access Hacks . | . . Unauthorized Hacks . | . . Terminals . | . . Fabricators . | . . Repair Stations . | . . Recycling Units . | . . Scanalyzers . | . . Garrison Access . | . . Data Cores Recovered . | . . Used . | . . Hacking Detections 1 | . 1 Full Trace Events . | . . Feedback Events . | . . Feedback Blocked . | . . Robot Schematics Acquired . | . . Robots Built . | . . Authchips . | . . Time . | . . Total Robot Build Rating . | . . Part Schematics Acquired . | . . Parts Built . | . . Authchips . | . . Time . | . . Total Part Build Rating . | . . Parts Repaired . | . . Time . | . . Parts Recycled . | . . Recycled Matter . | . . Retrieved Matter . | . . Retrieved Components . | . . Parts Scanalyzed . | . . Part Schematics Acquired . | . . Parts Damaged . | . . Bothacking | -11 -10 ------------ Run | Scr Mat Used RIF Installer . | . . Robots Hacked . | . . Non-combat . | . . Combat . | . . Robot Hacks Applied . | . . Relay Couplers Released . | . . Fabnet Peak Effective % . | . . Robots Rewired . | . . Allies Hacked . | . . Hacks Repelled . | . . Allies | -11 -10 -------- Run | Scr Mat Total Allies . | . . Largest Group . | . . Highest-Rated Group . | . . Highest-Rated Ally . | . . Total Orders . | . . Ally Attacks . | . . Total Damage . | . . Kills . | . . Allies Corrupted . | . . Allies Melted . | . . Intel | -11 -10 ------- Run | Scr Mat Robot Analysis Total . | . . Derelict Logs Recovered . | . . Drone Launches . | . . Drone Recoveries . | . . Exploration | -11 -10 ------------- Run | Scr Mat Turns Passed 1789 | 87 1702 Spaces Moved 472 | 55 417 Core 17 | 14 3 Treads 455 | 41 414 Legs . | . . Wheels . | . . Hover . | . . Flight . | . . Fastest Speed 50 | 50 160 Average Speed 349 | 137 377 Slowest Speed 1450 | 160 1450 Overloaded Moves . | . . Propulsion Burnouts . | . . Robots Hopped . | . . Cave-ins Triggered . | . . Exploration Rate (%) 38 | 3 74 Regions Visited 1 Branch Regions . Pre-discovered Areas . | . . Known Exits Taken . | . . Unknown Exits Taken 1 | 1 . Scrap Searched . | . . Spaces Dug . | . . Terrain Destroyed 48 | . 48 Melee . | . . Projectile . | . . AOE 48 | . 48 Terrain Rammed . | . . Walls Destroyed . | . . Machines Disabled . | . . Actions | -11 -10 --------- Run | Scr Mat Total 560 | 67 493 Wait 21 | . 21 Move 471 | 54 417 Hop . | . . Pick Up 17 | 7 10 Fast Attach . | . . Attach 12 | 6 6 Detach . | . . Swap 3 | . 3 Drop 1 | . 1 Fire 31 | . 31 Melee . | . . Ram . | . . Kick . | . . Crush 4 | . 4 Escape Stasis . | . . Rewire . | . . Trap . | . . Miscellaneous . | . . Route ------- -11/Scrapyard -10/Materials (discovered 3 exits: [*Mat x2] / [*Min]) History --------- Turn | Location | Event 3 | -11/Scrapyard | Discovered new exit (range 15) 88 | -11/Scrapyard | Entered Materials 208 | -10/Materials | Discovered new exit (range 3) 312 | -10/Materials | Build established: Mutant 432 | -10/Materials | Discovered new exit (range 10) 1469 | -10/Materials | Discovered new exit (range 15) 1742 | -10/Materials | Core integrity fell below 50% 1778 | -10/Materials | Core integrity fell below 20% 1790 | -10/Materials | Destroyed by G-34 Mercenary with Small Laser Last Messages --------------- 01554_ ALERT: Hostiles spotted, dispatching reinforcements to Terminal M004. 01705_ Sml. Laser destroyed. 01705_ Acquired Mining Laser. 01713_ Ion Engine destroyed. 01719_ G-34 Mercenary destroyed. 01721_ Mining Laser destroyed. 01726_ Acquired 20 matter. 01727_ Mining Laser destroyed. 01736_ Slammed into G-34 Mercenary. 01744_ K-01 Serf collects debris. 01745_ Slammed into G-34 Mercenary. 01746_ R-06 Scavenger collects Aluminum Leg. 01749_ K-01 Serf collects debris. 01750_ R-06 Scavenger collects Heat Sink. 01750_ Slammed into G-34 Mercenary. 01753_ Lgt. Treads destroyed. 01753_ K-01 Serf collects debris. 01761_ Ion Engine destroyed. 01765_ Structural Scanner destroyed. 01769_ K-01 Serf cleans the Machine. Map ----- +----------------------------------------------------+ | #????????????????????????????????????????????????? | | #????????????????????????????????????????????????? | | #??????????????????????????????????????????#####?? | | #??????????????????????????????????????????# #?? | | #??????????????????????????????????######### #?? | | #??????????????????????????????????# # #?? | | ???????????????????????????????????# + #?? | | ???????????????????????????????????# # #?? | | ########???????????????????????????# # #?? | | ########???????????????????????????# ?# #?? | | ##??????????????## ????#######?# #?? | | ##??????????????####+######??????????# #?? | | " " ##????? ##??????## ############### #?? | | "R" ##???? ##??????## o #?? | | """ ##??? ##???????? T #?? | | ##### ##???????? #?? | | ###+####### ##???????# ## ########## #?? | | # ########### ##?????????????# ### | | # ########### ##?????????????# # | | # ##""!" ""## ##???????""????# # | | # ## "!"k" ## ##???????""""??# # | | # ## ## ##??????""""" #* # | | ##??????""""" + = + | | < ##??????""""" # ! # | | " " !!! g ##???????""""??# # | | " !!! ## ##@ ##???????""????# # | | !! ########### ##?????????????# + | | ########### ##?????????????# ##### | | ##??????### ###????????????# #???? | | ########### ###????????????# #???? | | ####+########### w ## ?????????# #???? | | ^ # ### ## #??????### ##### | | """ !# + ## #??????+ | | """ # ### ## +??????# | | """ # #### ### ## #??????# | | # ####+#####+#### #??????+ | | # !/ ## # ################ | | + !/ ## """ """ # # ## | | # ## """ """ # # !!! "" # | | #+### ########## """ """ !# # """ !! Y" | | # ###### # # """ !! "" | | # #???############### # """ # | | # ######### # # | | + + ! # #######+##### | | # #####+######### # ### | | # #?# #????# + < #?##[ | | # #?# #????# # #??## | | # #?# #????# ###########+#####??# | | # ### #????# #?????# #??# | | ##### + #????# #?????# #??# | +----------------------------------------------------+ Best States ------------- Heat Dissipation 25 Energy Generation 10 Energy Capacity 250 Matter Stores 275 Matter Capacity 300 Sight Range 16 Terrain Scan Density 10 Evasion (%) 40 Recoil Reduction 2 Item Schematics ----------------- None Robot Schematics ------------------ None Fabricated ------------ Nothing Alien Tech Used ----------------- None Achievements -------------- None Challenges ------------ None Game ------ Seed MobileQuantumAxe Manual? 0 Play Time 00:07:56 Cumulative 218.6 hours Start 2022.09.03 @ 18:30:56 End 2022.09.03 @ 19:20:50 Sessions 1 Manual Loads 0 Difficulty Rogue Special Mode None Game No. 251 Rogue 118 Adventurer 81 Explorer 52 Win Type - Total 10 Types 9/0/1/0/0/0/0/0/0 Lore% 32 Gallery% 66 Achievement% 55 Wizard Run 0 Options --------- ASCII 0 Keyboard 0 Movement Mouse Keybinds 0 Fullscreen 1 Font 12/Tallcaps Map View 83x54 Tactical HUD 1 Map Filters NONE Filters NONE Steam 1 RUN: 09a4510f-da68-4ea1-8a38-e2af18034458